bitfinex-derivatives/quotes_SOLF0:USTF0_20241016
["timestamp","ask_amount","ask_price","bid_price","bid_amount"]
[1729085755681,40.15,155.26,155.16,2.61308007]
[1729085755878,40.15,155.26,155.16,1.4291]
[1729085756174,40.15,155.23,155.14,8.4113]
[1729085756569,3.2227,155.16,155.14,1.3913]
[1729085756774,7.02,155.22,155.14,1.3913]
[1729085757673,3.2227,155.16,155.14,1.3913]
[1729085758865,7.02,155.22,155.14,1.3913]
[1729085759066,7.02,155.22,155.15,3.2226]
[1729085759266,7.02,155.22,155.14,1.3913]
[1729085759570,40.15,155.2,155.11,1.4336]
[1729085760972,40.15,155.23,155.11,1.4336]
[1729085761175,3.2224,155.17,155.14,3.2228]
[1729085761480,40.15,155.2,155.11,1.4336]
[1729085761668,40.15,155.26,155.13,40.15]
[1729085761868,7.02,155.25,155.13,40.15]
[1729085762274,3.2218,155.2,155.13,40.15]
[1729085762477,7.02,155.25,155.15,40.15]
[1729085762678,7.02,155.25,155.16,8.4717]
[1729085762880,3.2214,155.22,155.19,3.2218]
[1729085763076,3.2214,155.22,155.16,8.4717]
[1729085763077,7.02,155.25,155.17,1.3632]
[1729085763272,40.15,155.24,155.12,7.02]
[1729085763475,3.2227,155.16,155.12,7.02]
[1729085763682,40.15,155.24,155.12,7.02]
[1729085763880,40.15,155.21,155.11,1.4336]
[1729085764481,7.02,155.2,155.11,1.4336]
[1729085765181,3.223,155.15,155.11,4.657]
[1729085765383,7.02,155.2,155.11,4.657]
[1729085765680,7.02,155.2,155.11,1.4336]
[1729085765681,3.2225,155.17,155.11,1.4336]
[1729085765881,40.15,155.19,155.11,1.4336]
[1729085766282,3.2234,155.13,155.11,1.4336]
[1729085766783,3.2234,155.12,155.08,6.0391]
[1729085767378,3.2234,155.12,155.08,2.8149]
[1729085767576,7.02,155.2,155.08,42.9649]
[1729085767777,7.02,155.21,155.08,42.9649]
[1729085768084,7.02,155.21,155.08,6.039]
[1729085768382,7.02,155.21,155.08,2.8149]
[1729085769486,7.02,155.21,155.08,1.3632]
[1729085769487,40.15,155.17,155.08,1.3632]
[1729085769681,3.2242,155.09,155.02,1.3672]
[1729085769987,47.17,155.09,154.98,2.7407]
[1729085770173,3.2259,155.01,154.98,2.7407]
[1729085770374,47.17,155.09,154.98,2.7407]
[1729085771684,3.2247,155.06,154.98,5.9669]
[1729085771881,47.17,155.09,154.98,2.7407]
[1729085772077,7.02,155.09,154.99,48.45]
[1729085772285,7.02,155.09,155.03,3.2253]
[1729085773384,6.94,155.11,155.05,3.2249]
[1729085773578,6.94,155.14,155.02,40.15]
[1729085774084,6.94,155.14,155.04,40.15]
[1729085774281,6.94,155.14,155.04,47.09]
[1729085774493,3.2237,155.11,155.07,3.2243]
[1729085774889,3.2237,155.11,154.99,41.51]
[1729085774890,47.09,155.14,154.99,41.51]
[1729085775088,40.15,155.09,154.99,1.36]
[1729085775286,40.15,155.06,154.98,2.7407]
[1729085775482,47.09,155.06,154.98,2.7407]
[1729085775685,3.226,155.0,154.98,2.7407]
[1729085775890,47.09,155.06,154.98,2.7407]
[1729085776089,3.2261,155.0,154.98,2.7407]
[1729085776291,40.15,155.04,154.95,1.3314]
[1729085776594,47.09,155.06,154.95,1.3314]
[1729085777397,40.15,155.04,154.95,1.3314]
[1729085777589,3.2267,154.97,154.93,5.8738]
[1729085777895,40.15,155.01,154.93,2.6466]
[1729085778090,47.09,155.01,154.93,2.6466]
[1729085778785,3.2267,154.97,154.93,5.8738]
[1729085779097,47.09,155.01,154.93,2.6466]
[1729085779501,6.94,155.01,154.93,2.6466]
[1729085779793,40.15,155.03,154.93,2.6466]
[1729085779996,3.2261,155.0,154.96,3.2266]
[1729085780290,40.15,155.03,154.96,3.2266]
[1729085780498,3.2257,155.02,154.98,3.2263]
[1729085780687,6.94,155.05,154.93,2.6466]
[1729085781000,3.2261,155.0,154.96,3.2267]
[1729085781497,6.94,155.05,154.93,2.6466]
[1729085781690,40.15,155.09,154.94,40.15]
[1729085781888,40.15,155.09,154.95,6.94]
[1729085782088,6.94,155.08,154.95,6.94]
[1729085782297,3.2256,155.02,154.98,3.2262]
[1729085782592,6.94,155.08,154.95,6.94]
[1729085782791,3.2257,155.01,154.98,3.2261]
[1729085782992,40.15,155.06,154.95,6.94]
[1729085783394,6.94,155.08,154.96,40.15]
[1729085783395,3.2252,155.04,154.96,40.15]
[1729085783596,6.94,155.08,154.96,40.15]
[1729085784291,40.15,155.04,154.93,2.6466]
[1729085784498,40.15,155.01,154.93,2.6466]
[1729085785499,3.2269,154.96,154.93,2.6466]
[1729085785801,40.15,155.01,154.93,2.6466]
[1729085786098,40.15,154.99,154.91,3.2277]
[1729085786300,40.15,154.99,154.9,1.435]
[1729085786599,3.2273,154.94,154.9,4.6629]
[1729085786801,6.94,154.98,154.9,1.435]
[1729085787002,40.15,154.96,154.87,2.7854]
[1729085787195,6.94,154.98,154.87,2.7854]
[1729085787196,40.15,154.93,154.87,2.7854]
[1729085787997,40.15,154.96,154.87,2.7854]
[1729085788908,3.2274,154.93,154.9,3.2279]
[1729085789204,40.15,154.96,154.84,40.15]
[1729085789401,3.2281,154.9,154.86,3.2286]
[1729085789590,40.15,154.96,154.84,40.15]
[1729085789992,40.15,154.96,154.83,8.3816]
[1729085790601,40.15,154.96,154.86,3.2288]
[1729085790808,40.15,154.93,154.83,8.3816]
[1729085790999,40.15,154.91,154.81,9.815]
[1729085791302,40.15,154.91,154.82,1.18647711]
[1729085791806,40.15,154.91,154.81,9.815]
[1729085792010,40.15,154.91,154.81,2.875]
[1729085792400,6.94,154.92,154.81,2.875]
[1729085792902,40.15,154.94,154.82,40.15]
[1729085793108,6.94,154.95,154.82,40.15]
[1729085793302,3.2276,154.93,154.82,40.15]
[1729085793497,47.09,154.96,154.84,40.15]
[1729085793697,47.09,154.96,154.85,8.3325]
[1729085793897,3.2275,154.93,154.9,3.228]
[1729085795104,3.2274,154.93,154.89,3.2281]
[1729085795307,3.2274,154.93,154.85,8.3325]
[1729085795499,3.2275,154.93,154.9,3.2279]
[1729085795695,40.15,154.99,154.85,8.3325]
[1729085795895,40.15,155.04,154.89,40.15]
[1729085796200,6.94,155.06,154.92,40.15]
[1729085796201,47.09,155.06,154.92,40.15]
[1729085796394,40.15,155.04,154.93,8.3479]
[1729085796598,3.2257,155.01,154.93,8.3479]
[1729085797010,40.15,155.06,154.93,8.3479]
[1729085797306,3.2255,155.03,154.93,8.3479]
[1729085797694,3.2251,155.04,154.93,8.3479]
[1729085797902,40.15,155.06,154.95,40.15]
[1729085798312,3.2254,155.03,154.99,3.2261]
[1729085798607,40.15,155.06,154.99,3.2261]
[1729085798805,3.2261,154.99,154.95,6.94]
[1729085799112,40.15,155.06,154.95,47.09]
[1729085799299,3.2251,155.04,154.95,47.09]
[1729085800102,40.15,155.06,154.97,3.2264]
[1729085800301,40.15,155.06,154.95,6.94]
[1729085800502,40.15,155.01,154.9,2.7702]
[1729085800706,3.2278,154.91,154.9,2.7702]
[1729085801007,40.15,154.96,154.9,2.7702]
[1729085801208,40.15,154.96,154.9,1.3422]
[1729085801413,3.2274,154.94,154.9,1.3422]
[1729085801805,40.15,154.98,154.9,1.3422]
[1729085802011,3.2265,154.98,154.94,3.227]
[1729085802217,40.15,155.01,154.92,6.88]
[1729085802710,6.88,155.05,154.92,47.03]
[1729085803008,6.88,155.05,154.93,1.3601]
[1729085803209,3.2254,155.03,154.93,1.3601]
[1729085803408,6.88,155.05,154.93,1.3601]
[1729085803606,3.2252,155.04,155.0,3.2258]
[1729085803809,40.15,155.09,154.98,6.88]
[1729085804115,40.15,155.11,155.03,3.2252]
[1729085804413,40.15,155.11,154.99,8.2702]
[1729085804809,3.2249,155.06,155.03,3.2253]
[1729085805006,40.15,155.13,155.04,6.88]
[1729085805615,3.2243,155.08,155.04,10.105]
[1729085806007,3.2246,155.07,155.03,3.2253]
[1729085806316,40.15,155.11,155.01,8.272]
[1729085806707,3.2243,155.08,155.01,8.272]
[1729085806913,40.15,155.11,155.01,8.272]
[1729085807115,40.15,155.14,155.01,8.272]
[1729085807621,3.2244,155.08,155.04,3.2251]
[1729085807822,40.15,155.14,155.01,8.272]
[1729085808008,40.15,155.14,155.02,40.15]
[1729085808232,3.2236,155.12,155.08,3.2241]
[1729085808417,6.88,155.16,155.06,6.88]
[1729085808921,3.2234,155.12,155.06,6.88]
[1729085809222,6.88,155.16,155.06,6.88]
[1729085809820,3.224,155.1,155.06,10.1045]
[1729085810121,40.15,155.14,155.06,6.88]
[1729085810323,3.2248,155.06,155.01,1.392]
[1729085810524,3.2248,155.06,155.02,6.88]
[1729085810921,40.15,155.12,155.02,6.88]
[1729085811117,40.15,155.09,155.02,6.88]
[1729085811318,3.2245,155.07,155.02,6.88]
[1729085811526,40.15,155.09,155.02,6.88]
[1729085812123,3.225,155.05,155.02,6.88]
[1729085812421,3.225,155.05,155.02,10.1055]
[1729085812822,3.2246,155.07,155.02,6.88]
[1729085813024,6.88,155.11,155.02,6.88]
[1729085814321,40.15,155.12,155.02,6.88]
[1729085814523,40.15,155.12,154.99,1.3902]
[1729085814524,40.15,155.06,154.99,1.3902]
[1729085814735,40.15,155.06,154.97,6.88]
[1729085815027,40.15,155.04,154.95,1.4195]
[1729085815335,40.15,155.04,154.95,8.2995]
[1729085816645,3.2267,154.97,154.95,8.2995]
[1729085816839,40.15,155.04,154.95,8.2995]
[1729085817935,47.03,155.06,154.95,8.2995]
[1729085819845,47.03,155.06,154.95,11.5263]
[1729085820339,47.03,155.06,154.95,8.2995]
[1729085820647,47.03,155.06,154.96,3.2267]
[1729085821348,3.2262,154.99,154.96,3.2267]
[1729085821542,40.15,155.01,154.91,8.3246]
[1729085822234,3.2271,154.95,154.92,3.2276]
[1729085822543,40.15,155.01,154.91,8.3246]
[1729085822943,3.2265,154.98,154.94,3.2271]
[1729085823135,6.4499,155.05,154.91,8.3246]
[1729085823136,40.15,155.03,154.91,8.3246]
[1729085823333,40.15,155.06,154.93,40.15]
[1729085823635,16.1084,155.21,154.98,40.15]
[1729085823636,47.03,155.11,154.98,40.15]
[1729085823829,40.15,155.09,154.99,11.016]
[1729085824436,47.03,155.11,154.99,11.016]
[1729085824735,47.03,155.14,155.01,40.15]
[1729085824938,40.15,155.14,155.01,40.15]
[1729085825144,3.224,155.1,155.06,3.2246]
[1729085825339,40.15,155.14,155.06,3.2246]
[1729085825532,3.224,155.1,155.06,3.2246]
[1729085825738,40.15,155.17,155.04,6.88]
[1729085825936,6.88,155.18,155.06,40.15]
[1729085826236,40.15,155.12,155.01,6.88]
[1729085826431,47.03,155.14,155.01,6.88]
[1729085826643,76.1234,155.21,155.03,40.15]
[1729085826644,3.2233,155.13,155.03,40.15]
[1729085826841,40.15,155.16,155.07,3.2243]
[1729085827047,40.15,155.14,155.06,6.88]
[1729085827546,40.15,155.14,155.06,10.1047]
[1729085827735,3.224,155.1,155.06,3.2247]
[1729085827938,40.15,155.14,155.05,6.88]
[1729085828445,3.2243,155.08,155.05,6.88]
[1729085828637,40.15,155.14,155.05,6.88]
[1729085828839,3.2236,155.12,155.05,6.88]
[1729085829035,6.88,155.17,155.06,40.15]
[1729085829236,6.88,155.17,155.09,3.224]
[1729085829434,3.2238,155.11,155.05,6.88]
[1729085829833,47.03,155.17,155.05,6.88]
[1729085830039,40.15,155.14,155.05,6.88]
[1729085830242,40.15,155.14,155.05,10.1049]
[1729085830738,40.15,155.14,155.06,3.2246]
[1729085830739,3.2242,155.09,155.06,3.2246]
[1729085830934,40.15,155.14,155.05,6.88]
[1729085831338,47.03,155.17,155.09,3.2239]
[1729085831542,47.03,155.17,155.05,6.88]
[1729085831744,3.2231,155.14,155.05,6.88]
[1729085831947,47.03,155.17,155.09,3.224]
[1729085832239,47.03,155.17,155.05,6.88]
[1729085832543,6.88,155.17,155.06,40.15]
[1729085832849,40.15,155.19,155.06,40.15]
[1729085833049,3.2229,155.15,155.12,3.2234]
[1729085833245,40.15,155.19,155.1,6.68]
[1729085833640,40.15,155.17,155.1,6.68]
[1729085833943,40.15,155.17,155.09,6.68]
[1729085834544,3.2236,155.12,155.08,9.5426]
[1729085834750,40.15,155.17,155.11,3.2236]
[1729085835050,3.2232,155.13,155.08,9.5426]
[1729085835341,40.15,155.17,155.08,6.68]
[1729085835651,40.15,155.11,155.05,6.68]
[1729085836442,40.15,155.09,155.02,2.808]
[1729085836646,40.15,155.09,155.02,6.68]
[1729085837347,40.15,155.11,155.04,3.225]
[1729085837652,6.68,155.12,155.02,6.68]
[1729085837843,6.68,155.12,155.03,2.7823]
[1729085838153,40.15,155.14,155.03,2.7823]
[1729085838342,40.15,155.14,155.03,4.1598]
[1729085838537,3.224,155.1,155.06,3.2246]
[1729085838752,3.224,155.1,155.03,4.1598]
[1729085839240,6.68,155.15,155.03,4.1598]
[1729085839438,40.15,155.16,155.03,4.1598]
[1729085839739,3.2227,155.16,155.07,40.15]
[1729085839935,40.15,155.19,155.03,4.1598]
[1729085839936,40.15,155.22,155.1,40.15]
[1729085840140,40.15,155.22,155.14,3.2229]
[1729085840141,46.83,155.22,155.14,3.2229]
[1729085840341,3.2232,155.14,155.11,2.775]
[1729085840556,46.83,155.22,155.11,2.775]
[1729085840851,3.223,155.15,155.11,5.9985]
[1729085841046,40.15,155.19,155.09,6.68]
[1729085841453,3.2234,155.13,155.09,6.68]
[1729085841644,40.15,155.17,155.05,42.925]
[1729085841843,46.83,155.17,155.08,6.68]
[1729085842144,46.83,155.17,155.05,42.925]
[1729085842145,40.15,155.14,155.05,6.68]
[1729085842941,40.15,155.16,155.05,6.68]
[1729085843137,40.15,155.19,155.05,6.68]
[1729085843652,3.2228,155.15,155.07,40.15]
[1729085843842,3.2228,155.15,155.08,1.3204]
[1729085844345,3.2228,155.15,155.11,3.2235]
[1729085844844,40.15,155.24,155.1,6.68]
[1729085845048,6.68,155.23,155.11,1.45]
[1729085845248,3.2225,155.17,155.13,3.2231]
[1729085845454,3.2225,155.17,155.11,1.45]
[1729085845744,6.68,155.23,155.11,1.45]
[1729085845954,40.15,155.19,155.09,1.3487]
[1729085846143,40.15,155.17,155.09,1.3487]
[1729085846343,3.2229,155.15,155.08,11.2245]
[1729085846653,40.15,155.17,155.08,8.0004]
[1729085847342,3.2236,155.11,155.08,11.2245]
[1729085847851,40.15,155.12,155.04,6.68]
[1729085848152,40.15,155.1,155.01,72.4676]
[1729085848350,40.15,155.1,155.02,6.68]
[1729085848552,3.2251,155.05,155.02,6.68]
[1729085848757,46.83,155.12,155.02,6.68]
[1729085849045,3.2245,155.08,155.04,3.225]
[1729085849248,46.83,155.12,155.02,6.68]
[1729085849449,46.83,155.12,155.01,79.1476]
[1729085849650,40.15,155.09,155.01,79.1476]
[1729085849852,40.15,155.09,155.01,9.4876]
[1729085850743,40.15,155.07,154.99,3.2261]
[1729085851151,40.15,155.02,154.83,227.96683489]
[1729085851349,40.15,155.0,154.86,40.15]
[1729085851739,40.15,155.0,154.88,3.2283]
[1729085852147,40.15,154.97,154.85,4.2529]
[1729085852355,6.68,154.96,154.87,3.2286]
[1729085854249,3.2277,154.92,154.87,3.2286]
[1729085854456,6.68,154.96,154.86,6.68]
[1729085854753,6.68,155.0,154.89,40.15]
[1729085854954,6.68,155.01,154.89,40.15]
[1729085855255,3.2267,154.97,154.89,40.15]
[1729085855452,46.83,155.01,154.91,3.2276]
[1729085855755,3.2267,154.97,154.89,40.15]
[1729085856652,3.2267,154.97,154.92,3.2274]
[1729085857552,3.2265,154.98,154.93,3.2273]
[1729085857746,46.83,155.01,154.93,3.2273]
[1729085857953,46.83,155.01,154.89,40.15]
[1729085858259,40.15,154.96,154.85,4.2529]
[1729085858454,40.15,154.93,154.85,2.8324]
[1729085858854,6.68,154.94,154.85,2.8324]
[1729085859056,40.15,154.95,154.85,2.8324]
[1729085859255,40.15,154.92,154.81,1.4449]
[1729085859449,40.15,154.9,154.81,8.1249]
[1729085859652,3.2286,154.88,154.83,3.2294]
[1729085859855,40.15,154.9,154.81,8.1249]
[1729085860363,40.15,154.9,154.83,3.2294]
[1729085860657,40.15,154.9,154.81,8.1249]
[1729085860855,46.83,154.92,154.81,8.1249]
[1729085861248,40.15,154.97,154.84,40.15]
[1729085861463,40.15,154.95,154.85,2.8224]
[1729085861650,40.15,154.92,154.85,2.8224]
[1729085861849,40.15,154.92,154.81,8.1249]
[1729085862451,3.2292,154.85,154.81,4.6746]
[1729085862654,46.79,154.9,154.8,2.8224]
[1729085862861,46.79,154.9,154.76,6.64]
[1729085862862,40.15,154.87,154.76,6.64]
[1729085863062,40.15,154.87,154.78,3.2304]
[1729085863063,3.2298,154.82,154.78,3.2304]
[1729085863361,40.15,154.87,154.76,6.64]
[1729085863550,46.79,154.9,154.77,1.18682813]
[1729085863757,3.2295,154.83,154.76,6.64]
[1729085864661,40.15,154.88,154.76,6.64]
[1729085864958,40.15,154.83,154.75,9.8711]
[1729085865153,40.15,154.83,154.75,6.64]
[1729085865349,40.15,154.83,154.73,4.1528]
[1729085865565,40.15,154.83,154.74,3.2312]
[1729085866063,3.2307,154.78,154.74,3.2312]
[1729085866558,3.2302,154.8,154.76,3.2308]
[1729085866757,40.15,154.83,154.76,3.2308]
[1729085867961,40.15,154.83,154.75,3.2311]
[1729085868162,3.2304,154.79,154.75,3.2311]
[1729085868463,3.2304,154.79,154.76,3.2309]
[1729085869265,3.2302,154.8,154.77,3.2307]
[1729085869467,6.64,154.84,154.73,10.7928]
[1729085869869,40.15,154.85,154.73,10.7928]
[1729085870065,40.15,154.87,154.74,40.15]
[1729085870765,40.15,154.82,154.73,10.7928]
[1729085871167,3.2304,154.79,154.76,3.2308]
[1729085871567,40.15,154.82,154.76,3.2308]
[1729085871864,6.64,154.88,154.79,3.2302]
[1729085871865,40.15,154.85,154.79,3.2302]
[1729085872668,40.15,154.85,154.73,10.7928]
[1729085872869,6.64,154.87,154.75,40.15]
[1729085873061,6.64,154.87,154.77,40.15]
[1729085873371,3.2288,154.87,154.78,6.64]
[1729085873672,46.79,154.9,154.78,6.64]
[1729085874069,3.2286,154.87,154.84,3.2291]
[1729085874366,40.15,154.92,154.8,40.15]
[1729085874563,40.15,154.92,154.81,2.7886]
[1729085874768,3.2284,154.89,154.81,2.7886]
[1729085874959,40.15,154.92,154.75,9.75710209]
[1729085875165,3.2298,154.82,154.78,3.2304]
[1729085875369,6.64,154.89,154.76,4.0537]
[1729085875668,3.229,154.86,154.82,3.2295]
[1729085875970,3.229,154.86,154.8,6.64]
[1729085876370,3.2291,154.85,154.82,3.2296]
[1729085877170,3.229,154.86,154.83,3.2294]
[1729085877472,3.229,154.86,154.8,6.64]
[1729085877676,3.2297,154.83,154.79,3.2302]
[1729085877973,3.2297,154.83,154.77,6.64]
[1729085877974,3.2297,154.83,154.76,4.0537]
[1729085878178,40.15,154.9,154.77,6.64]
[1729085878369,40.15,154.86,154.78,3.2304]
[1729085878560,40.15,154.86,154.77,6.64]
[1729085878966,3.2298,154.82,154.78,3.2303]
[1729085879162,40.15,154.86,154.78,3.2303]
[1729085879371,40.15,154.86,154.77,6.64]
[1729085879372,40.15,154.83,154.73,6.64]
[1729085879769,24.83,154.82,154.73,6.64]
[1729085879964,24.83,154.82,154.69,24.83]
[1729085880169,24.83,154.85,154.71,24.83]
[1729085880579,3.23,154.81,154.78,3.2304]
[1729085880771,20.0,154.85,154.75,6.64]
[1729085880968,20.0,154.85,154.76,2.7681]
[1729085881280,20.0,154.85,154.76,4.1944]
[1729085881582,24.83,154.84,154.76,2.7681]
[1729085881876,40.33,154.84,154.76,2.7681]
[1729085882371,40.33,154.84,154.75,6.64]
[1729085882576,40.33,154.81,154.72,8.0663]
[1729085882877,6.64,154.83,154.72,8.0663]
[1729085883574,6.64,154.83,154.75,3.231]
[1729085883878,6.64,154.83,154.72,8.0663]
[1729085884084,20.0,154.85,154.73,40.33]
[1729085885083,20.0,154.85,154.76,40.33]
[1729085885387,23.2292,154.85,154.81,3.2298]
[1729085885677,20.0,154.85,154.79,6.64]
[1729085887171,20.0,154.85,154.8,1.4203]
[1729085888079,20.0,154.85,154.79,6.64]
[1729085888280,20.0,154.85,154.78,6.64]
[1729085888475,20.0,154.85,154.77,2.7955]
[1729085889379,3.2303,154.79,154.77,3.2306]
[1729085889582,20.0,154.85,154.77,3.2306]
[1729085889978,20.0,154.85,154.75,1.4203]
[1729085890180,3.2296,154.83,154.76,3.2308]
[1729085890380,40.33,154.84,154.74,76.4]
[1729085890570,40.33,154.84,154.75,3.231]
[1729085890776,20.0,154.85,154.74,6.64]
[1729085891373,20.0,154.85,154.77,3.2306]
[1729085892183,3.23,154.81,154.78,3.2305]
[1729085892480,40.33,154.83,154.74,6.64]
[1729085892683,3.2303,154.79,154.69,41.6473]
[1729085892876,40.33,154.81,154.73,3.2314]
[1729085893080,40.33,154.83,154.72,6.72]
[1729085893283,20.0,154.85,154.72,6.72]
[1729085893481,20.0,154.85,154.73,6.72]
[1729085894089,3.2299,154.81,154.78,3.2304]
[1729085894579,20.0,154.85,154.73,6.72]
[1729085895086,3.2302,154.8,154.77,3.2306]
[1729085895689,20.0,154.85,154.73,6.72]
[1729085895891,20.0,154.85,154.74,40.33]
[1729085896092,20.0,154.85,154.83,3.2294]
[1729085896391,20.0,154.85,154.8,6.72]
[1729085896587,3.2298,154.82,154.79,3.2303]
[1729085897388,20.0,154.85,154.77,6.72]
[1729085897792,26.72,154.85,154.77,6.72]
[1729085897994,20.0,154.85,154.77,6.72]
[1729085898203,20.0,154.85,154.78,2.8183]
[1729085898391,3.2294,154.84,154.81,3.2297]
[1729085898896,3.2302,154.8,154.77,9.9506]
[1729085899093,20.0,154.85,154.67,72.51750774]
[1729085899094,40.33,154.84,154.7,2.8183]
[1729085899296,40.33,154.81,154.71,6.72]
[1729085899693,40.33,154.79,154.69,6.72]
[1729085900887,3.2309,154.76,154.71,3.2318]
[1729085901096,40.33,154.79,154.69,6.72]
[1729085901297,40.33,154.81,154.69,6.72]
[1729085901490,40.33,154.81,154.72,3.2316]
[1729085901491,3.2312,154.75,154.72,3.2316]
[1729085901693,40.33,154.81,154.69,6.72]
[1729085901995,3.2309,154.76,154.71,3.2318]
[1729085902194,24.84,154.81,154.69,6.72]
[1729085902397,24.84,154.79,154.66,69.76]
[1729085902603,24.84,154.74,154.65,6.72]
[1729085902902,24.84,154.71,154.63,2.8044]
[1729085903208,6.72,154.73,154.63,2.8044]
[1729085903406,24.84,154.74,154.63,2.8044]
[1729085904093,3.2325,154.69,154.65,3.2331]
[1729085904300,3.2325,154.69,154.63,2.8044]
[1729085904597,24.84,154.74,154.63,2.8044]
[1729085905300,3.233,154.66,154.62,3.2337]
[1729085905701,6.72,154.7,154.6,6.72]
[1729085905902,3.2325,154.69,154.6,6.72]
[1729085906209,6.72,154.7,154.6,6.72]
[1729085906407,3.2328,154.67,154.64,3.2333]
[1729085906595,6.72,154.73,154.6,6.72]
[1729085906995,3.2326,154.68,154.64,3.2332]
[1729085907208,6.72,154.73,154.6,6.72]
[1729085907915,6.72,154.73,154.59,26.2178]
[1729085908116,24.84,154.71,154.61,6.72]
[1729085908301,3.2326,154.68,154.61,6.72]
[1729085909299,3.2331,154.66,154.59,1.3778]
[1729085909511,24.84,154.69,154.59,8.0978]
[1729085909810,24.84,154.69,154.58,9.5112]
[1729085910005,24.84,154.69,154.58,6.0258]
[1729085910006,3.2331,154.66,154.58,6.0258]
[1729085910208,24.84,154.64,154.58,1.4471]
[1729085910404,24.84,154.64,154.55,1.3985]
[1729085910619,6.72,154.68,154.55,1.3985]
[1729085910620,24.84,154.66,154.55,1.3985]
[1729085910817,24.84,154.66,154.56,6.72]
[1729085911001,3.2334,154.65,154.6,3.2342]
[1729085911208,6.72,154.68,154.56,6.72]
[1729085911404,24.84,154.69,154.56,31.56]
[1729085911604,9.89808396,154.71,154.56,31.56]
[1729085911815,24.84,154.68,154.56,31.56]
[1729085912318,24.84,154.66,154.56,6.72]
[1729085912609,3.2349,154.57,154.53,7.06]
[1729085912814,24.84,154.63,154.53,7.06]
[1729085913621,24.84,154.65,154.57,3.2347]
[1729085913812,24.84,154.65,154.53,31.9]
[1729085914212,24.84,154.68,154.56,24.84]
[1729085914724,3.2334,154.65,154.56,24.84]
[1729085914911,24.84,154.71,154.58,24.84]
[1729085915115,31.9,154.73,154.61,24.84]
[1729085915315,31.9,154.73,154.62,1.4002]
[1729085915517,24.84,154.76,154.63,24.84]
[1729085915815,24.84,154.79,154.64,7.06]
[1729085916122,24.84,154.76,154.64,7.06]
[1729085916422,3.2318,154.72,154.68,3.2324]
[1729085916615,24.84,154.81,154.68,24.84]
[1729085916815,298.84,154.91,154.79,3.2301]
[1729085916816,3.2293,154.84,154.79,3.2301]